Cogmind - Beta 13 @@@ ROGUE MODE // 2024.04.20 @ 22:00:14 Player: Gold Spoon Result: Self-destructed Performance ------------- Evolutions (2) 1000 Regions Visited (5) 1000 Robots Destroyed (29) 145 Value Destroyed (746) 746 Prototype IDs (27) 540 Alien Tech Used (0) 0 Bonus (300) 300 TOTAL SCORE: 3731 Bonus ------- Aligned with FarCom 300 Cogmind --------- Core Integrity 418/550 Matter 295/300 Energy 239/250 System Corruption 0% Temperature Cool (0) Movement Core (250) Ox4 Location -8/Materials Parts ------- > --- POWER (1) -------- Ion Engine > --- PROPULSION (3) --- (None) > --- UTILITY (5) ------ Improved Heat Sink Small Storage Unit Signal Interpreter > --- WEAPON (2) ------- Particle Cannon > --- INVENTORY (8) ---- Light Ion Engine Heat Sink Experimental Sensor Array Recoil Stabilizer Field Lobotomy Kit (5) Peak State ------------ > --- POWER ------------ Ion Engine > --- PROPULSION ------- Wheel > --- UTILITY ---------- Improved Heat Sink Small Storage Unit Experimental Sensor Array Signal Interpreter > --- WEAPON ----------- Particle Cannon Particle Cannon > --- INVENTORY -------- Light Ion Engine Heat Sink Particle Cannon Field Lobotomy Kit [Rating: 21] Favorites ----------- Power Ion Engine Engine Ion Engine Propulsion Wheel Wheel Wheel Utility Small Storage Unit Device Improved Heat Sink Storage Small Storage Unit Processor Signal Interpreter Weapon Particle Cannon Energy Cannon Particle Cannon Ballistic Gun Assault Rifle Build | -11 -10 -10 -10 -9 -8 ------- Run | Yrd Mat Min Exi Min Mat Slots Evolved 4 | . . . . . 4 Power . | . . . . . . Propulsion 1 | . . . . . 1 Utility 3 | . . . . . 3 Weapon . | . . . . . . Parts Attached 19 | 6 7 3 . . 3 Power 2 | 1 1 . . . . Engine 2 | 1 1 . . . . Core . | . . . . . . Reactor . | . . . . . . Propulsion 6 | 2 2 2 . . . Treads . | . . . . . . Leg . | . . . . . . Wheel 6 | 2 2 2 . . . Hover . | . . . . . . Flight . | . . . . . . Utility 5 | 1 2 . . . 2 Device 3 | . 2 . . . 1 Storage 1 | 1 . . . . . Processor 1 | . . . . . 1 Hackware . | . . . . . . Protection . | . . . . . . Artifact . | . . . . . . Weapon 6 | 2 2 1 . . 1 Energy Gun . | . . . . . . Energy Cannon 4 | . 2 1 . . 1 Ballistic Gun 2 | 2 . . . . . Ballistic Cannon . | . . . . . . Launcher . | . . . . . . Special Weapon . | . . . . . . Impact Weapon . | . . . . . . Slashing Weapon . | . . . . . . Piercing Weapon . | . . . . . . Special Melee Weapon . | . . . . . . Unidentified Prototypes 1 | . . . . . 1 Parts Lost 7 | . . 3 . 1 3 Power . | . . . . . . Propulsion 4 | . . 2 . 1 1 Utility . | . . . . . . Weapon 3 | . . 1 . . 2 Highest Loss Streak 3 | . . 1 . 1 3 To Critical Strikes . | . . . . . . Average Slot Usage (%) 91 | . 98 88 100 85 61 Engine 13 | . 14 14 14 14 9 Wheel 22 | . 27 18 28 14 8 Device 12 | . 12 14 14 14 9 Storage 13 | . 14 14 14 14 9 Energy Cannon 23 | . 21 26 28 28 17 Ballistic Gun 3 | . 6 . . . . Naked Turns . | . . . . . . Heaviest Build 19 | 11 19 19 19 19 19 Greatest Support 26 | 26 26 20 20 10 10 Greatest Overweight (x) 1 | . . 1 . 1 1 Average Overweight (x) . | . . . . 1 1 Largest Inventory Capacity 8 | 8 8 8 8 8 8 Average Capacity 7 | 6 8 8 8 8 8 Most Carried 8 | 3 8 7 7 6 6 Average Carried 5 | 1 5 5 4 5 5 Final Capacity 8 | 8 8 8 8 8 8 Final Carried 7 | 1 7 4 5 6 5 Class Distribution -------------------- 100% | Mutant Dominant Class ---------------- Mutant | -10/Materials Mutant | -10/Mines Mutant | -10/Exiles Mutant | -9/Mines Mutant | -8/Materials Resources | -11 -10 -10 -10 -9 -8 ----------- Run | Yrd Mat Min Exi Min Mat Matter Collected 441 | 246 150 20 . 5 20 Remotely . | . . . . . . Salvage Created 817 | . 403 133 . 106 175 Parts 42 | . 18 15 . 4 5 Haulers Intercepted . | . . . . . . Recyclers Shooed 1 | . . . . . 1 Parts Field Recycled . | . . . . . . Retrieved Matter . | . . . . . . Parts Self-Destructed . | . . . . . . Prevented . | . . . . . . Kills | -11 -10 -10 -10 -9 -8 ------- Run | Yrd Mat Min Exi Min Mat Combat Hostiles Destroyed 25 | . 9 8 . 3 5 Guns 5 | . 5 . . . . Cannons 19 | . 4 8 . 2 5 AOE 1 | . . . . 1 . Classes Destroyed 5 | . 3 1 . 1 . Builder 1 | . . 1 . . . Watcher 3 | . 3 . . . . Swarmer 11 | . 1 8 . . 2 Grunt 13 | . 8 . . 2 3 Brawler 1 | . . . . 1 . Best Kill Streak 4 | . 2 4 . 3 4 Combat Bots Only 4 | . 2 4 . 3 4 Max Kills in Single Turn 1 | . 1 1 . 1 1 Gunslinging . | . . . . . . Exploded 1 | . . . . 1 . Melee . | . . . . . . Uniques/NPCs Destroyed . | . . . . . . Combat | -11 -10 -10 -10 -9 -8 -------- Run | Yrd Mat Min Exi Min Mat Hostile Shots Fired 137 | . 28 49 . 8 52 Missed 47 | . 8 15 . 6 18 Damage Taken 980 | . 228 296 . 82 374 Core 255 | . 50 42 . 31 132 Absorbed by Shields . | . . . . . . Regen/Repaired (Parts) 18 | . 18 . . . . Core Remaining (%) 75 | 100 . . . 50 . Volleys Fired 90 | . 33 25 . 7 25 Largest 2 | . 2 2 . 2 2 Hottest 136 | . 136 136 . 136 136 Shots Fired 177 | . 66 50 . 14 47 Gun 38 | . 38 . . . . Cannon 139 | . 28 50 . 14 47 Launcher . | . . . . . . Special . | . . . . . . Kinetic 38 | . 38 . . . . Thermal 139 | . 28 50 . 14 47 Explosive . | . . . . . . Electromagnetic . | . . . . . . Robot Hit Streak 9 | . 7 3 . 4 9 Robot Miss Streak 8 | . 2 4 . 3 8 Penetration Max . | . . . . . . Secondary Targets . | . . . . . . Shots Hit Robots 101 | . 43 23 . 9 26 Core Hits 40 | . 20 9 . 3 8 Critical Kills 1 | . 1 . . . . Critical Parts Destroyed . | . . . . . . Critical Strikes 1 | . 1 . . . . Meltdown 1 | . 1 . . . . Melee Attacks . | . . . . . . Impact . | . . . . . . Slashing . | . . . . . . Piercing . | . . . . . . Sneak Attacks . | . . . . . . Combat Hostiles . | . . . . . . Follow-up Attacks . | . . . . . . Damage Inflicted 2103 | . 680 531 . 257 635 Guns 290 | . 290 . . . . Cannons 1740 | . 390 531 . 184 635 Explosions 73 | . . . . 73 . Melee . | . . . . . . Ramming . | . . . . . . Kinetic 290 | . 290 . . . . Thermal 1813 | . 390 531 . 257 635 Explosive . | . . . . . . Electromagnetic . | . . . . . . Impact . | . . . . . . Slashing . | . . . . . . Piercing . | . . . . . . Highest Corruption . | . . . . . . Average Corruption . | . . . . . . Corruption Purged . | . . . . . . Corruption Blocked . | . . . . . . Overload Shots . | . . . . . . Overflow Damage 25 | . . 2 . 4 19 Projectiles 21 | . . 2 . . 19 Explosions 4 | . . . . 4 . Melee . | . . . . . . Knockbacks . | . . . . . . Impact . | . . . . . . Kinetic . | . . . . . . Secondary . | . . . . . . Self-Inflicted Damage 54 | . . . . 54 . Shots 2 | . . . . 2 . Rammed . | . . . . . . Targets Rammed . | . . . . . . Kicked . | . . . . . . Crushed . | . . . . . . Highest Temperature 326 | . 258 326 . 228 246 Average Temperature 101 | . 88 124 . 113 78 Received Heat Transfer 318 | . 117 69 . 6 126 Effects 5 | . 2 3 . . . Shutdowns 1 | . . 1 . . . Energy Bleed 2 | . . 2 . . . Interference 2 | . 2 . . . . Siege Activations . | . . . . . . Robots Corrupted . | . . . . . . Combat Hostiles . | . . . . . . Parts Fried . | . . . . . . Impact Corruptions . | . . . . . . Robots Melted 1 | . 1 . . . . Combat Hostiles . | . . . . . . Parts Melted 7 | . 3 2 . 2 . Heat Transferred 3295 | . 703 962 . 483 1147 Parts Sabotaged . | . . . . . . Parts Stolen . | . . . . . . Parts Stripped . | . . . . . . Power Chain Reactions . | . . . . . . Alert | -11 -10 -10 -10 -9 -8 ------- Run | Yrd Mat Min Exi Min Mat Peak Influence 277 | . 160 277 . 128 173 Initial 49 | . . 27 . . 49 Average 82 | . 44 214 . 122 81 Maximum Alert Level 1 | . . 1 . . . Low Security (%) 91 | 100 100 34 . 100 100 Level 1 8 | . . 65 . . . Level 2 . | . . . . . . Level 3 . | . . . . . . Level 4 . | . . . . . . Level 5 . | . . . . . . High Security . | . . . . . . Max Security . | . . . . . . Squads Dispatched 4 | . 2 . . . 2 Investigation 2 | . 1 . . . 1 Extermination . | . . . . . . Reinforcement 2 | . 1 . . . 1 Assault . | . . . . . . Garrison . | . . . . . . Intercept . | . . . . . . Searches Triggered . | . . . . . . Construction Impeded . | . . . . . . Haulers Reinforced . | . . . . . . Active Scanning Responses . | . . . . . . Cargo Convoy Interrupts . | . . . . . . Stealth | -11 -10 -10 -10 -9 -8 --------- Run | Yrd Mat Min Exi Min Mat Distress Signals 2 | . . . . . 2 Communications Jammed . | . . . . . . Distress Signals . | . . . . . . Times Spotted 45 | . 16 14 . 2 13 Peak Tracking Total 6 | . 3 4 . 2 6 Tactical Retreats 5 | . 2 3 . . . Traps | -11 -10 -10 -10 -9 -8 ------- Run | Yrd Mat Min Exi Min Mat Traps Triggered 1 | . 1 . . . . Indirectly . | . . . . . . Trap Hack Attempts . | . . . . . . Triggered . | . . . . . . Disarmed . | . . . . . . Reprogrammed . | . . . . . . Reused . | . . . . . . Traps Extracted . | . . . . . . Installed . | . . . . . . Triggered . | . . . . . . Machines | -11 -10 -10 -10 -9 -8 ---------- Run | Yrd Mat Min Exi Min Mat Machines Disabled 4 | . . 1 . 3 . Max in Single Turn 3 | . . 1 . 3 . Machines Repaired . | . . . . . . Machines Dismantled . | . . . . . . Machines Sabotaged . | . . . . . . Overloaded Fab Kills . | . . . . . . Hacking | -11 -10 -10 -10 -9 -8 --------- Run | Yrd Mat Min Exi Min Mat Machines Accessed 8 | . 6 . 1 . 1 Terminals 6 | . 5 . . . 1 Fabricators . | . . . . . . Repair Stations 1 | . 1 . . . . Recycling Units . | . . . . . . Scanalyzers . | . . . . . . Garrison Access . | . . . . . . Total Hacks 20 | . 15 . 1 . 4 Successful 13 | . 10 . 1 . 2 Failed 7 | . 5 . . . 2 Catastrophic 3 | . 1 . . . 2 Database Lockouts . | . . . . . . Manual 1 | . . . 1 . . Terminals 17 | . 13 . . . 4 Fabricators . | . . . . . . Repair Stations 2 | . 2 . . . . Recycling Units . | . . . . . . Scanalyzers . | . . . . . . Garrison Access . | . . . . . . Terminal Hacks 11 | . 8 . 1 . 2 Robot Analysis 1 | . 1 . . . . Prototype ID Bank 2 | . 2 . . . . Level Access Points 1 | . 1 . . . . Branch Access Points 2 | . 1 . . . 1 Unreport Threat 2 | . 2 . . . . Locate Traps 2 | . 1 . . . 1 Derelict Proto ID Bank 1 | . . . 1 . . Fabricator Hacks . | . . . . . . Repair Station Hacks 2 | . 2 . . . . Scan Component 1 | . 1 . . . . Repair 1 | . 1 . . . . Recycling Unit Hacks . | . . . . . . Scanalyzer . | . . . . . . Garrison Access Hacks . | . . . . . . Unauthorized Hacks . | . . . . . . Terminals . | . . . . . . Fabricators . | . . . . . . Repair Stations . | . . . . . . Recycling Units . | . . . . . . Scanalyzers . | . . . . . . Garrison Access . | . . . . . . Data Cores Recovered . | . . . . . . Used . | . . . . . . Hacking Detections 7 | . 6 . . . 1 Full Trace Events 1 | . . . . . 1 Feedback Events . | . . . . . . Feedback Blocked . | . . . . . . Robot Schematics Acquired . | . . . . . . Robots Built . | . . . . . . Authchips . | . . . . . . Time . | . . . . . . Total Robot Build Rating . | . . . . . . Part Schematics Acquired . | . . . . . . Parts Built . | . . . . . . Authchips . | . . . . . . Time . | . . . . . . Total Part Build Rating . | . . . . . . Parts Repaired 1 | . 1 . . . . Time 26 | . 26 . . . . Parts Recycled . | . . . . . . Recycled Matter . | . . . . . . Retrieved Matter . | . . . . . . Retrieved Components . | . . . . . . Parts Scanalyzed . | . . . . . . Part Schematics Acquired . | . . . . . . Parts Damaged . | . . . . . . Bothacking | -11 -10 -10 -10 -9 -8 ------------ Run | Yrd Mat Min Exi Min Mat Used RIF Installer . | . . . . . . Robots Hacked . | . . . . . . Non-combat . | . . . . . . Combat . | . . . . . . Robot Hacks Applied . | . . . . . . Relay Couplers Released . | . . . . . . Fabnet Peak Effective % . | . . . . . . Robots Rewired . | . . . . . . Allies Hacked . | . . . . . . Hacks Repelled . | . . . . . . Allies | -11 -10 -10 -10 -9 -8 -------- Run | Yrd Mat Min Exi Min Mat Total Allies . | . . . . . . Largest Group . | . . . . . . Highest-Rated Group . | . . . . . . Highest-Rated Ally . | . . . . . . Total Orders . | . . . . . . Ally Attacks . | . . . . . . Total Damage . | . . . . . . Kills . | . . . . . . Allies Corrupted . | . . . . . . Allies Melted . | . . . . . . Intel | -11 -10 -10 -10 -9 -8 ------- Run | Yrd Mat Min Exi Min Mat Robot Analysis Total 1 | . 1 . . . . Derelict Logs Recovered 1 | . . . . 1 . Drone Launches . | . . . . . . Drone Recoveries . | . . . . . . Exploration | -11 -10 -10 -10 -9 -8 ------------- Run | Yrd Mat Min Exi Min Mat Turns Passed 1529 | 43 749 173 177 227 160 Spaces Moved 1334 | 38 689 101 217 215 74 Core 10 | 10 . . . . . Treads . | . . . . . . Legs . | . . . . . . Wheels 1324 | 28 689 101 217 215 74 Hover . | . . . . . . Flight . | . . . . . . Fastest Speed 50 | 50 80 80 80 95 95 Average Speed 85 | 80 83 86 80 95 95 Slowest Speed 100 | 100 90 95 80 95 95 Overloaded Moves . | . . . . . . Propulsion Burnouts . | . . . . . . Robots Hopped . | . . . . . . Cave-ins Triggered . | . . . . . . Exploration Rate (%) 33 | 3 91 19 42 38 6 Regions Visited 5 Branch Regions 3 Pre-discovered Areas 1 | . . . . 1 . Known Exits Taken 1 | . 1 . . . . Unknown Exits Taken 4 | 1 . 1 1 1 . Scrap Searched 1 | . . . . 1 . Spaces Dug . | . . . . . . Terrain Destroyed 9 | . . . . 9 . Melee . | . . . . . . Projectile 1 | . . . . 1 . AOE 8 | . . . . 8 . Terrain Rammed . | . . . . . . Walls Destroyed . | . . . . . . Machines Disabled . | . . . . . . Actions | -11 -10 -10 -10 -9 -8 --------- Run | Yrd Mat Min Exi Min Mat Total 1550 | 50 803 136 221 223 117 Wait 79 | . 57 8 . 1 13 Move 1329 | 37 688 100 216 214 74 Hop . | . . . . . . Pick Up 25 | 7 13 . 3 1 1 Fast Attach . | . . . . . . Attach 15 | 6 3 3 . . 3 Detach 1 | . . . . . 1 Swap 4 | . 4 . . . . Drop 7 | . 5 . 2 . . Fire 90 | . 33 25 . 7 25 Melee . | . . . . . . Ram . | . . . . . . Kick . | . . . . . . Crush . | . . . . . . Escape Stasis . | . . . . . . Rewire . | . . . . . . Trap . | . . . . . . Miscellaneous . | . . . . . . Route ------- -11/Scrapyard -10/Materials (discovered 4 exits: *Mat x3 / *Min) -10/Mines -10/Exiles -9/Mines -8/Materials History --------- Turn | Location | Event 6 | -11/Scrapyard | Discovered new exit (range 15) 44 | -11/Scrapyard | Entered Materials 173 | -10/Materials | Identified exit to Materials 304 | -10/Materials | Build established: Mutant 308 | -10/Materials | Repaired Wheel 385 | -10/Materials | Identified exit to Mines 793 | -10/Materials | Entered Mines 906 | -10/Mines | Deemed a non-threat by the Exiles lab entrance 906 | -10/Mines | Discovered new exit (range 5) 966 | -10/Mines | Entered Exiles 986 | -10/Exiles | Met 8R-AWN 1000 | -10/Exiles | Met EX-HEX 1023 | -10/Exiles | Met EX-BIN 1034 | -10/Exiles | Aligned with FarCom system 1035 | -10/Exiles | Given EX-Vault access code 1054 | -10/Exiles | Opened EX-Vault 1059 | -10/Exiles | Found Field Lobotomy Kit 1063 | -10/Exiles | Found Potential Leg 1065 | -10/Exiles | Found Potential Leg 1083 | -10/Exiles | Warned to stay clear of 0b10 Research branches 1135 | -10/Exiles | Discovered new exit (range 14) 1143 | -10/Exiles | Left Exiles lab with Field Lobotomy Kit 1143 | -10/Exiles | Entered Mines 1284 | -9/Mines | Found a damaged Exp. Sensor Array with a note attached 1286 | -9/Mines | Found Prototype Device 1363 | -9/Mines | Discovered new exit (range 8) 1370 | -9/Mines | Entered Materials 1370 | -8/Materials | Evolved 4 slots: Propulsion x1, Utility x3 1371 | -8/Materials | Identified Exp. Sensor Array 1530 | -8/Materials | Self-destructed Last Messages --------------- G-47 Trooper destroyed. Destroyed Imp. Heat Sink. G-47 Trooper heat damages Aluminum Leg. G-47 Trooper overheating. G-47 Trooper heat damages Aluminum Leg. G-47 Trooper overheating. R-06 Scavenger collects Imp. Heat Sink. Destroyed Aluminum Leg. Destroyed Lgt. Nuclear Core. G-47 Trooper destroyed. W-25 Informer sends out distress signal. S-10 Pest destroyed. R-06 Scavenger collects Lgt. Ion Engine. S-10 Pest destroyed. Particle Cannon destroyed. R-06 Scavenger collects Flight Unit. S-10 Pest destroyed. Destroyed Flight Unit. Wheel destroyed. R-06 Scavenger collects Lgt. Ion Engine. Map ----- +----------------------------------------------------+ | ?????????????????????????????????????????????????? | | ?????????????????????????????????????????????????? | | ?????????????????????????????????????????????????? | | ?????????????????????????????????????????????????? | | ?????????????????????????????????????????????????? | | ?????????????????????????????????????????????????? | | ?????????????????????????????????????????????????? | | ?????????????????????????????????????????????????? | | ?????????????????????????????????????????????????? | | ?????????????????????????????????????????????????? | | ?????????????????????????????????????????????????? | | ?????????#####???????????????????????????????????? | | ?????????# ##########??????????????????????????? | | ?????????# # #??????????????????????????? | | ?????????# # """" #??????????????????????????? | | ?????????# #| ""S"" #??????????????????????????? | | ?????????# # "" "" #??????????????????????????? | | ?????????# # #??????????????????????????? | | ?????????# # """ #??????????????????????????? | | ?????????# # """ ! #??????????????????????????? | | ?????????# # """ #??????????????????????????? | | ?????????# # % #??????????????????????????? | | ?????????# ###+##################m ###?????????? | | ?????????# % ss s%rs ! ????????? | | ?????????# %r= ????????? | | ?????????# @ % % ????????? | | ?????????##############+####### ^ ????????? | | ??????????????????# #??????????????????????? | | ??????????????????# "T" #???????^??????????????? | | ??????????????????# #??????^???????????????? | | ??????????????????# #??????????????????????? | | ??????????????????#% #??????????????????????? | | ??????????????????#########??????????????????????? | | ?????????????????????????????????????????????????? | | ??????????????????????????????????????w??????????? | | ?????????????????????Y???????????????????????????? | | ?????????????????????????????????????????????????? | | ?????????????????????????????????????????????????? | | ?????????????????????????????????????????????????? | | ??????????????????????????Y??????????????????????? | | ?????????????????????????????????????????????????? | | ?????????????????????????????????????????????????? | | ?????????????????????????????????????????????????? | | ?????????????????????????????????????????????????? | | ?????????????????????????????????????????????????? | | ?????????????????????????????????????????????????? | | ?????????????????????????????????????????????????? | | ?????????????????????????????????????????????????? | | ?????????????????????????????????????????????????? | | ???????????????????????????????^?????????????????? | +----------------------------------------------------+ Best States ------------- Heat Dissipation 45 Energy Generation 10 Energy Capacity 250 Matter Stores 300 Matter Capacity 300 Sight Range 16 Terrain Scan Density 10 Evasion (%) 50 Item Schematics ----------------- None Robot Schematics ------------------ None Fabricated ------------ Nothing Alien Tech Used ----------------- None Achievements -------------- None Challenges ------------ None Game ------ Seed BiometalDerelictDetector Manual? 0 Play Time 00:17:49 Cumulative 15.7 hours Start 2024.04.20 @ 21:44:39 End 2024.04.20 @ 22:00:14 Sessions 1 Manual Loads 0 Difficulty Rogue Special Mode None Game No. 23 Rogue 21 Adventurer 2 Explorer 0 Win Type - Total 0 Types 0/0/0/0/0/0/0/0/0 Lore% 19 Gallery% 17 Achievement% 18 Wizard Run 0 Options --------- Layout 1 ASCII 0 Keyboard 0 Movement Mouse Keybinds 0 Fullscreen 1 Font 24/Smallcaps Map View 50x40 Zoom Use 0% Tactical HUD 0 Map Filters NONE Filters NONE Steam 1 RUN: 42dd2fa0-99f6-4abe-b0e2-c5cd1d6aa92c